Cogmind - Beta 15 @@@ ROGUE MODE // 2025.06.09 @ 01:20:26 Player: Candle Result: Destroyed by D-53 Grenadier with Mini Grenade Launcher Performance ------------- Evolutions (0) 0 Regions Visited (2) 400 Robots Destroyed (29) 145 Value Destroyed (494) 494 Prototype IDs (0) 0 Alien Tech Used (0) 0 Bonus (-101) -101 TOTAL SCORE: 938 Bonus ------- Follower Combat Kills 21 Friendly Fire -122 Cogmind --------- Core Integrity 0/250 Matter 285/300 Energy 63/100 System Corruption 2% Temperature Warm (129) Movement Core (750) Ox14 Location -10/Mines Parts ------- > --- POWER (1) -------- (None) > --- PROPULSION (2) --- (None) > --- UTILITY (2) ------ High-capacity Storage Unit Improved Targeting Computer > --- WEAPON (2) ------- Makeshift Hammer > --- INVENTORY (20) --- Nuclear Core Light Nuclear Core VTOL Module VTOL Module VTOL Module VTOL Module Cesium-ion Thruster Improved Heat Sink Cooling System Small Storage Unit Large Storage Unit Compact Matter Pod (150) Experimental Sensor Array Reaction Control System Hacking Suite Hacking Suite Beamcaster Rocket Launcher Plasma Cutter Peak State ------------ > --- POWER ------------ Ion Engine > --- PROPULSION ------- Compact Wheel Compact Wheel > --- UTILITY ---------- High-capacity Storage Unit Improved Targeting Computer > --- WEAPON ----------- Medium Laser Ion Cannon > --- INVENTORY -------- Light Ion Engine Light Nuclear Core VTOL Module VTOL Module VTOL Module VTOL Module Cesium-ion Thruster Improved Heat Sink Cooling System Small Storage Unit Large Storage Unit Compact Matter Pod Experimental Sensor Array Reaction Control System Hacking Suite Hacking Suite Shock Rifle Grenade Launcher Plasma Cutter Hammer [Rating: 15] Favorites ----------- Power Ion Engine Engine Ion Engine Propulsion Compact Wheel Wheel Compact Wheel Utility High-capacity Storage Unit Storage High-capacity Storage Unit Processor Improved Targeting Computer Weapon Light Assault Rifle Energy Gun Medium Laser Energy Cannon Ion Cannon Ballistic Gun Light Assault Rifle Launcher Grenade Launcher Impact Weapon Hammer Build | -11 -10 -10 ------- Run | Yrd Mat Min Slots Evolved . | . . . Power . | . . . Propulsion . | . . . Utility . | . . . Weapon . | . . . Parts Attached 22 | 5 14 3 Power 4 | 1 3 . Engine 4 | 1 3 . Core . | . . . Reactor . | . . . Propulsion 5 | 2 3 . Treads . | . . . Leg . | . . . Wheel 5 | 2 3 . Hover . | . . . Flight . | . . . Utility 3 | 1 2 . Device . | . . . Storage 2 | 1 1 . Processor 1 | . 1 . Hackware . | . . . Protection . | . . . Artifact . | . . . Weapon 10 | 1 6 3 Energy Gun 2 | . 1 1 Energy Cannon 1 | . . 1 Ballistic Gun 4 | 1 3 . Ballistic Cannon . | . . . Launcher 1 | . 1 . Special Weapon . | . . . Impact Weapon 2 | . 1 1 Slashing Weapon . | . . . Piercing Weapon . | . . . Special Melee Weapon . | . . . Unidentified Prototypes . | . . . Parts Lost 9 | . 4 5 Power 1 | . . 1 Propulsion 4 | . 2 2 Utility . | . . . Weapon 4 | . 2 2 Highest Loss Streak 5 | . 2 5 To Critical Strikes . | . . . Average Backups 13 | . 11 19 Power 1 | . 1 1 Propulsion 3 | . 2 4 Utility 5 | . 4 8 Weapon 2 | . 1 2 Tool/Special . | . . . Unused Backups 23 | . 1 22 Power 2 | . . 2 Propulsion 5 | . . 5 Utility 12 | . . 12 Weapon 3 | . 1 2 Tool/Special 1 | . . 1 Average Slot Usage (%) 93 | . 89 99 Engine 14 | . 14 14 Wheel 22 | . 20 27 Storage 14 | . 14 14 Processor 13 | . 12 14 Energy Gun 5 | . 1 14 Energy Cannon 4 | . . 13 Ballistic Gun 16 | . 25 . Peak Build Rating 15 | 5 11 15 Average Rating 10 | 4 8 14 On Entrance 5 | . 5 11 Naked Turns . | . . . Heaviest Build 53 | 12 52 53 Greatest Support 32 | 32 32 32 Greatest Overweight (x) 4 | . 4 1 Average Overweight (x) 1 | . 2 1 Largest Inventory Capacity 20 | 8 20 20 Average Capacity 19 | 7 19 20 Most Carried 20 | 1 18 20 Average Carried 14 | . 11 19 Final Capacity 20 | 8 20 20 Final Carried 19 | 1 17 19 Class Distribution -------------------- 87% | Mutant 12% | Scavenger-Mutant Dominant Class ---------------- Mutant | -10/Materials Mutant | -10/Mines Resources | -11 -10 -10 ----------- Run | Yrd Mat Min Matter Collected 798 | 183 436 179 Remotely . | . . . Salvage Created 796 | . 575 221 Parts 53 | . 40 13 Haulers Intercepted 2 | . 2 . Recyclers Shooed 2 | . 1 1 Parts Field Recycled . | . . . Retrieved Matter . | . . . Parts Self-Destructed . | . . . Prevented . | . . . Kills | -11 -10 -10 ------- Run | Yrd Mat Min Combat Hostiles Destroyed 19 | . 12 7 Guns 13 | . 9 4 Cannons 3 | . . 3 AOE 3 | . 3 . Classes Destroyed 9 | . 8 1 Worker 2 | . 2 . Tunneler 1 | . 1 . Hauler 2 | . 2 . Recycler 1 | . 1 . Operator 1 | . 1 . Watcher 2 | . 2 . Swarmer 11 | . 8 3 Grunt 7 | . 4 3 Demolisher 1 | . . 1 Thug 1 | . . 1 Best Kill Streak 6 | . 6 3 Combat Bots Only 4 | . 4 3 Max Kills in Single Turn 4 | . 4 1 Gunslinging . | . . . Exploded 3 | . 3 . Melee . | . . . Uniques/NPCs Destroyed . | . . . Combat | -11 -10 -10 -------- Run | Yrd Mat Min Hostile Shots Fired 106 | . 76 30 Missed 27 | . 17 10 Hits 79 | . 59 20 Projectile 79 | . 59 20 AOE 9 | . . 9 Damage Taken 1040 | . 577 463 Core 258 | . 127 131 Absorbed by Shields . | . . . Core Remaining (%) 100 | 100 . . Volleys Fired 103 | . 81 22 Largest 2 | . 2 2 Hottest 110 | . 70 110 Shots Fired 194 | . 150 44 Gun 171 | . 149 22 Cannon 22 | . . 22 Launcher 1 | . 1 . Special . | . . . Kinetic 146 | . 146 . Thermal 47 | . 3 44 Explosive 1 | . 1 . Electromagnetic . | . . . Robot Hit Streak 17 | . 17 5 Robot Miss Streak 4 | . 4 3 Penetration Max . | . . . Secondary Targets . | . . . Shots Hit Robots 126 | . 100 26 Core Hits 48 | . 36 12 Critical Kills . | . . . Critical Parts Destroyed . | . . . Critical Strikes 1 | . . 1 Burn 1 | . . 1 Melee Attacks 2 | . 1 1 Impact 2 | . 1 1 Slashing . | . . . Piercing . | . . . Sneak Attacks . | . . . Combat Hostiles . | . . . Follow-up Attacks . | . . . Damage Inflicted 1583 | . 1116 467 Guns 1146 | . 965 181 Cannons 257 | . . 257 Explosions 151 | . 151 . Melee 27 | . . 27 Ramming 2 | . . 2 Kinetic 928 | . 928 . Thermal 475 | . 37 438 Explosive 151 | . 151 . Electromagnetic . | . . . Impact 27 | . . 27 Slashing . | . . . Piercing . | . . . Highest Corruption 2 | . 2 2 Average Corruption 2 | . 2 2 Corruption Purged . | . . . Corruption Blocked . | . . . Effects 10 | . . 10 Message Errors 1 | . . 1 Matter Fused 2 | . . 2 Heat Flow Errors 2 | . . 2 Energy Discharges 3 | . . 3 Parts Fused 1 | . . 1 Misfires 1 | . . 1 Overload Shots . | . . . Overflow Damage 9 | . 9 . Projectiles . | . . . Explosions 9 | . 9 . Melee . | . . . Knockbacks 1 | . . 1 Impact 1 | . . 1 Kinetic . | . . . Secondary . | . . . Self-Inflicted Damage 1 | . . 1 Shots . | . . . Rammed 1 | . . 1 Targets Rammed 1 | . . 1 Kicked . | . . . Crushed . | . . . Highest Temperature 318 | . 50 318 Average Temperature 98 | . 15 119 Received Heat Transfer 246 | . 174 72 Siege Activations . | . . . Martial Activations . | . . . Shielding Activations . | . . . Robots Disrupted . | . . . Combat Hostiles . | . . . Robots Corrupted . | . . . Combat Hostiles . | . . . Parts Fried . | . . . Impact Corruptions . | . . . Robots Melted . | . . . Combat Hostiles . | . . . Parts Melted . | . . . Heat Transferred 1110 | . 111 999 Parts Sabotaged . | . . . Parts Stolen . | . . . Parts Stripped . | . . . Power Chain Reactions . | . . . Alert | -11 -10 -10 ------- Run | Yrd Mat Min Maximum Alert Level . | . . . Low Security (%) 100 | 100 100 100 Level 1 . | . . . Level 2 . | . . . Level 3 . | . . . Level 4 . | . . . Level 5 . | . . . High Security . | . . . Max Security . | . . . Peak Influence 123 | . 123 112 Initial . | . . . Average 35 | . 40 30 Influence Increases 703 | . 435 268 Destroy 0b10 Robot/C 440 | . 240 200 Destroy 0b10 Robot/NC 45 | . 45 . Destroy Leader 68 | . 38 30 Allied During Kill 4 | . . 4 Successful Hack 47 | . 47 . Destroy Structure 9 | . 5 4 Partial Spotted 15 | . 15 . Lose Combat Pursuer 75 | . 45 30 Influence Decreases 703 | . 435 268 Time Decay 642 | . 395 247 Lost Part 61 | . 40 21 Squads Dispatched 1 | . . 1 Investigation 1 | . . 1 Extermination . | . . . Reinforcement . | . . . Assault . | . . . Garrison . | . . . Intercept . | . . . Searches Triggered . | . . . Construction Impeded . | . . . Haulers Reinforced . | . . . Active Scanning Responses . | . . . Cargo Convoy Interrupts . | . . . Stealth | -11 -10 -10 --------- Run | Yrd Mat Min Distress Signals 2 | . 2 . Communications Jammed . | . . . Distress Signals . | . . . Times Spotted 42 | . 28 14 Peak Tracking Total 5 | . 5 3 Tactical Retreats 5 | . 3 2 Traps | -11 -10 -10 ------- Run | Yrd Mat Min Traps Triggered 1 | . 1 . Indirectly . | . . . Trap Hack Attempts . | . . . Triggered . | . . . Disarmed . | . . . Reprogrammed . | . . . Reused . | . . . Traps Extracted . | . . . Installed . | . . . Triggered . | . . . Machines | -11 -10 -10 ---------- Run | Yrd Mat Min Machines Disabled . | . . . Max in Single Turn . | . . . Machines Repaired . | . . . Machines Dismantled . | . . . Machines Sabotaged . | . . . Overloaded Fab Kills . | . . . Hacking | -11 -10 -10 --------- Run | Yrd Mat Min Machines Accessed 10 | . 9 1 Terminals 7 | . 7 . Fabricators . | . . . Repair Stations 1 | . 1 . Recycling Units 1 | . 1 . Scanalyzers . | . . . Garrison Access . | . . . Total Hacks 29 | . 28 1 Successful 13 | . 12 1 Failed 16 | . 16 . Catastrophic 2 | . 2 . Database Lockouts . | . . . Manual 18 | . 18 . Terminals 22 | . 22 . Fabricators . | . . . Repair Stations 1 | . 1 . Recycling Units 5 | . 5 . Scanalyzers . | . . . Garrison Access . | . . . Terminal Hacks 5 | . 4 1 Robot Analysis 1 | . 1 . Open Door 1 | . . 1 Terminal Index 1 | . 1 . Maintenance Status 1 | . 1 . Zone Layout 1 | . 1 . Fabricator Hacks . | . . . Repair Station Hacks . | . . . Recycling Unit Hacks 1 | . 1 . Report Inventory 1 | . 1 . Scanalyzer . | . . . Garrison Access Hacks . | . . . Unauthorized Hacks 7 | . 7 . Terminals 4 | . 4 . Botnet 3 | . 3 . Operators 1 | . 1 . Fabricators . | . . . Repair Stations . | . . . Recycling Units 3 | . 3 . Reject 1 | . 1 . Recyclers 1 | . 1 . Mask 1 | . 1 . Scanalyzers . | . . . Garrison Access . | . . . Data Cores Recovered 1 | . 1 . Used . | . . . Hacking Detections 9 | . 9 . Full Trace Events . | . . . Feedback Events . | . . . Feedback Blocked . | . . . Robot Schematics Acquired . | . . . Robots Built . | . . . Authchips . | . . . Time . | . . . Total Robot Build Rating . | . . . Part Schematics Acquired . | . . . Parts Built . | . . . Authchips . | . . . Time . | . . . Total Part Build Rating . | . . . Parts Repaired . | . . . Time . | . . . Parts Recycled . | . . . Recycled Matter . | . . . Retrieved Matter . | . . . Retrieved Components . | . . . Parts Scanalyzed . | . . . Part Schematics Acquired . | . . . Parts Damaged . | . . . Bothacking | -11 -10 -10 ------------ Run | Yrd Mat Min Used RIF Installer . | . . . Robots Hacked . | . . . Non-combat . | . . . Combat . | . . . Robot Hacks Applied . | . . . Relay Couplers Released . | . . . Fabnet Peak Effective % . | . . . Robots Rewired . | . . . Allies Hacked . | . . . Hacks Repelled . | . . . Allies | -11 -10 -10 -------- Run | Yrd Mat Min Total Allies 1 | . . 1 Largest Group 1 | . . 1 Highest-Rated Group 31 | . . 31 Highest-Rated Ally 31 | . . 31 Total Orders . | . . . Ally Attacks 6 | . . 6 Total Damage 83 | . . 83 Kills 3 | . . 3 Allies Corrupted . | . . . Allies Melted . | . . . Intel | -11 -10 -10 ------- Run | Yrd Mat Min Active Infowar (turns) . | . . . Robot Analysis Total 1 | . 1 . Derelict Logs Recovered 2 | . . 2 Drone Launches . | . . . Drone Recoveries . | . . . Exploration | -11 -10 -10 ------------- Run | Yrd Mat Min Turns Passed 2266 | 71 1379 816 Spaces Moved 1483 | 66 873 544 Core 5 | 5 . . Treads . | . . . Legs . | . . . Wheels 1478 | 61 873 544 Hover . | . . . Flight . | . . . Fastest Speed 50 | 50 100 115 Average Speed 118 | 96 121 115 Slowest Speed 140 | 100 140 115 Overloaded Moves . | . . . Propulsion Burnouts . | . . . Robots Hopped . | . . . Potential Cave-ins . | . . . Cave-ins Triggered . | . . . Exploration Rate (%) 56 | 5 95 70 Regions Visited 2 Branch Regions 1 Pre-discovered Areas 2 | . . 2 Known Exits Taken . | . . . Unknown Exits Taken 2 | 1 1 . Scrap Searched . | . . . Spaces Dug 1 | . 1 . Terrain Destroyed 9 | . 5 4 Melee 1 | . 1 . Projectile 4 | . . 4 AOE 4 | . 4 . Terrain Rammed . | . . . Walls Destroyed . | . . . Machines Disabled . | . . . Actions | -11 -10 -10 --------- Run | Yrd Mat Min Total 1822 | 71 1054 697 Wait 162 | . 56 106 Move 1481 | 65 872 544 Hop . | . . . Pick Up 31 | 1 19 11 Fast Attach 12 | 5 6 1 Attach 4 | . 3 1 Detach 3 | . 3 . Swap 9 | . 8 1 Drop 14 | . 5 9 Fire 103 | . 81 22 Melee 2 | . 1 1 Ram 1 | . . 1 Kick . | . . . Crush . | . . . Escape Stasis . | . . . Rewire . | . . . Trap . | . . . Miscellaneous . | . . . Route ------- -11/Scrapyard -10/Materials (discovered 4 exits: [*Mat x3] / *Min) -10/Mines (discovered 4 exits: [*Mat x2] / [*Exi] / [*Sub]) History --------- Turn | Location | Event 2 | -11/Scrapyard | Met Revision 17 3 | -11/Scrapyard | Discovered new exit (range 16) 72 | -11/Scrapyard | Entered Materials 318 | -10/Materials | Build established: Mutant 485 | -10/Materials | Discovered new exit (range 8) 597 | -10/Materials | Discovered new exit (range 14) 796 | -10/Materials | Core integrity fell below 50% 857 | -10/Materials | Discovered new exit (range 5) 1197 | -10/Materials | Discovered new exit (range 3) 1451 | -10/Materials | Entered Mines 1458 | -10/Mines | Met a Derelict shopkeep closing up shop 1528 | -10/Mines | Learned location of Zion (-7) 1553 | -10/Mines | Discovered new exit (range 8) 1599 | -10/Mines | Found a damaged Exp. Sensor Array with a note attached 1602 | -10/Mines | Found Prototype Device 1622 | -10/Mines | Discovered new exit (range 16) 1781 | -10/Mines | Discovered new exit (range 13) 1783 | -10/Mines | Escorted by a lone wolf Derelict 2029 | -10/Mines | Deemed a non-threat by the Exiles lab entrance 2029 | -10/Mines | Discovered new exit (range 5) 2069 | -10/Mines | A weapon hastily lodged in a ceiling crevice suddenly fell to the ground 2183 | -10/Mines | Received a Rocket Launcher from a helpful Derelict 2202 | -10/Mines | Assembled infested the area 2262 | -10/Mines | Core integrity fell below 20% 2267 | -10/Mines | Destroyed by D-53 Grenadier with Mini Grenade Launcher Last Messages --------------- lend you mine." IJ-V0Q(g) slips back into the shadows. Dropped Grenade Launcher. Acquired Rocket Launcher. ALERT: Infestation in the mines, dispatching Demolisher response squad. System corrupted: Energy discharge (-62). C-30 ARC bursts open, deploying its payload. D-53 Grenadier unfolds itself. T-07 Excavator destroyed. Com. Wheel destroyed. System corrupted: Heat flow error (+120). D-53 Grenadier destroyed. Ion Cannon destroyed. K-01 Serf destroyed. Ion Engine destroyed. Med. Laser destroyed. Com. Wheel destroyed. D-53 Grenadier knocked back. U-05 Engineer lays Concrete. Map ----- +----------------------------------------------------+ | ??????????????# #???# #????????# % ## | | ?????????????## ##???# #????????###### ### #### | | ?????????????# #????# #?????????????# #??? | | ?????????????## #????# #?????????????#*#####??? | | ?????? ??????## ##????# #?????????????# #??????? | | ??????? ???????###???### #?????????????# #??????? | | ???????# ???????????## #?????????????# #??????? | | ???????# ##??####??## ##????????????# ######## | | ??###### ?## #### #????????????# # | | ?## ## ## #????????????####### # | | ? # ##??????????????????# # | | ? #####???????????????????# # | | ## #####???????????????????# # | | ### #???????????????????# # | | #?# #???????????????????# # | | #?##### #???????????????????# # | | ?? ## #?????# #???????????????????# # | | ????## #?????# #?????????#?????????# # | | ?????## ## #???### #??????? ?????????# # | | ??????# ??## #??## #????? #???????## # | | ?????# ????## #### ###?## ??????## | | ????# ??????# ### #????## | | ????# ???????# ! # #???## | | ?????#????????###### =% # #???# | | ?????????????????## ##??# | | ????????????????#; @ # #??## | | ?????????????????## ### ##?## | | ??????????????????### d #??# ### # | | ????????????????????## ####??# ## | | ?????????????????????## / # ##??# #? | | ??????????????????????## u #??# ##? | | ???????????????????????## r #### #?? | | ????????????????????????#### = ## #?# | | ???????????????????????????##%= #?# | | ????????????????????# ######%[*[ ##?# | | ????????????????????# ==% ## ##??# | | ????????????????????###### ### #### #??## | | ?????????????????????????# #?## ##??## ##?## | | ?????????????????????????# #??# ##???####?## | | ?????????????????????????# #??# #????????# | | ?????????????????????????# #??# #?????#### | | ?????????????????????????# #??## ##?????# | | ?????????????????????????# #???## ###??????# # | | ?????????????????????????# #????# #????????# ## ## | | ?????????????????????????? ?????# #????????# ## ## | | ?????????????????????????? ?????# #????????# ## | | ?????????????????????????? ?????# ###??????# ##### | | ??????????????????????????#?????# ##?????# ####? | | ????????????????????????????????### #????## ## | | ??????????????????????????????????# ##??### # | +----------------------------------------------------+ Best States ------------- Heat Dissipation 25 Energy Generation 10 Energy Capacity 250 Matter Stores 300 Matter Capacity 300 Sight Range 16 Terrain Scan Density 10 Evasion (%) 40 Targeting Accuracy 6 Item Schematics ----------------- None Robot Schematics ------------------ None Fabricated ------------ Nothing Repaired ---------- Nothing Alien Tech Used ----------------- None Achievements -------------- None Challenges ------------ None Game ------ Seed VoltaicLongswordGun Manual? 0 Play Time 00:22:52 Cumulative 131.4 hours Start 2025.06.09 @ 00:48:54 End 2025.06.09 @ 01:20:26 Sessions 1 Manual Loads 0 Difficulty Rogue Special Mode None Game No. 163 Rogue 163 Adventurer 0 Explorer 0 Win Type - Total 0 Types 0/0/0/0/0/0/0/0/0/0 Lore% 40 Gallery% 38 Achievement% 33 Wizard Run 0 Options --------- Layout 1 ASCII 0 Keyboard 0 Movement Mouse Keybinds 0 Fullscreen 1 Font 32/SmallcapsGlow Map View 50x40 Zoom Use 0% Tactical HUD 0 Map Filters NONE Filters NONE Steam 1 RUN: 1bc70f53-a6b8-48e9-804b-b3b573384e05